fUSD/lending_fUSD_20240330
["ID","MTS","AMOUNT","RATE_DAILY","PERIOD"]
[321035008,1711805438795,-510.35321526,0.00041095,4]
[321035010,1711805438804,-338.36372827,0.00041095,4]
[321035012,1711805438813,-505.11875087,0.00041095,4]
[321035014,1711805438821,-500.0,0.00041095,4]
[321035016,1711805438830,-500.0,0.00041095,4]
[321035018,1711805438839,-502.02900859,0.00041095,4]
[321035020,1711805438848,-500.0,0.00041095,4]
[321035022,1711805438856,-500.0,0.00041095,4]
[321035024,1711805438868,-500.0,0.00041095,4]
[321035026,1711805438877,-500.0,0.00041095,4]
[321035027,1711805438886,-508.32410613,0.00041095,4]
[321035028,1711805438896,-512.08092012,0.00041095,4]
[321035030,1711805438907,-500.0,0.00041095,4]
[321035032,1711805438915,-500.0,0.00041095,4]
[321035034,1711805438924,-531.23140958,0.00041095,4]
[321035036,1711805438932,-500.0,0.00041095,4]
[321035038,1711805438943,-500.0,0.00041095,4]
[321035040,1711805438952,-594.61,0.00041095,4]
[321035041,1711805438961,-500.0,0.00041095,4]
[321035043,1711805438971,-500.0,0.00041095,4]
[321035045,1711805438980,-500.0,0.00041095,4]
[321035046,1711805438989,-500.0,0.00041095,4]
[321035047,1711805438999,-500.0,0.00041095,4]
[321035048,1711805439009,-500.0,0.00041095,4]
[321035049,1711805439021,-500.0,0.00041095,4]
[321035050,1711805439031,-500.0,0.00041095,4]
[321035051,1711805439040,-500.0,0.00041095,4]
[321035052,1711805439051,-500.0,0.00041095,4]
[321035053,1711805439060,-500.0,0.00041095,4]
[321035054,1711805439070,-1000.0,0.00041095,4]
[321035055,1711805439080,-500.0,0.00041095,4]
[321035056,1711805439090,-471.96883901,0.00041095,4]
[321035068,1711805443469,-28.03116099,0.00041095,4]
[321035069,1711805443481,-500.0,0.00041095,4]
[321035070,1711805443492,-500.0,0.00041095,4]
[321035071,1711805443502,-500.0,0.00041095,4]
[321035072,1711805443514,-504.38147067,0.00041095,4]
[321035073,1711805443524,-500.0,0.00041095,4]
[321035074,1711805443534,-500.0,0.00041095,4]
[321035075,1711805443544,-398.83366125,0.00041095,4]
[321035076,1711805443587,-101.16633875,0.00041095,4]
[321035077,1711805443597,-295.83371171,0.00041095,4]
[321035078,1711805443672,-297.13628829,0.00041095,4]
[321035079,1711805443683,-370.274934,0.00041095,4]
[321035080,1711805443692,-500.0,0.00041095,4]
[321035081,1711805443702,-500.0,0.00041095,4]
[321035082,1711805443711,-500.0,0.00041095,4]
[321035083,1711805443720,-500.0,0.00041095,4]
[321035084,1711805443730,-500.0,0.00041095,4]
[321035085,1711805443739,-500.0,0.00041095,4]
[321035086,1711805443748,-500.0,0.00041095,4]
[321035087,1711805443761,-500.0,0.00041095,4]
[321035088,1711805443770,-500.0,0.00041095,4]
[321035089,1711805443780,-500.0,0.00041095,4]
[321035090,1711805443790,-500.0,0.00041095,2]
[321035091,1711805443799,-500.0,0.00041095,4]
[321035092,1711805443809,-500.0,0.00041095,4]
[321035093,1711805443818,-422.33902771,0.00041095,4]
[321035094,1711805443835,-77.66097229,0.00041095,4]
[321035095,1711805443845,-508.0337423,0.00041095,4]
[321035096,1711805443855,-116.55528541,0.00041095,4]
[321035111,1711806631652,-729.28323713,0.00030821,25]
[321035112,1711806631663,-503.78712459,0.00035995,4]
[321035113,1711806631674,-155.0,0.00035995,4]
[321035114,1711806631684,-379.29559862,0.00035996,10]
[321035115,1711806631693,-512.49,0.00036932,2]
[321035116,1711806631703,-155.37696233,0.00037238,4]
[321035117,1711806631714,-386.31221945,0.00037337,2]
[321035118,1711806631728,-361.29718055,0.00037337,2]
[321035119,1711806631740,-155.49200959,0.00037999,4]
[321035120,1711806631750,-848.33080986,0.00037999,4]
[321035121,1711806631782,-592.57665198,0.00037999,4]
[321035122,1711806631795,-2177.0118026,0.00037999,4]
[321035123,1711806631805,-17534.74268587,0.00038,2]
[321035124,1711806631817,-5323.16275071,0.00038,2]
[321035125,1711806631842,-479.63544439,0.00038,2]
[321035126,1711806631855,-730.35536255,0.00038,2]
[321035127,1711806631869,-1272.22164415,0.00038,2]
[321035128,1711806631882,-562.43544538,0.00038,2]
[321035129,1711806631894,-1146.64309624,0.00038,2]
[321035130,1711806631919,-10330.72911579,0.00038,2]
[321035145,1711806637599,-1599.06086233,0.00038,2]
[321035146,1711806637720,-349.88488407,0.00038,2]
[321035147,1711806637768,-2988.4896285,0.00038,2]
[321035148,1711806637882,-1007.4,0.00038,2]
[321035149,1711806637895,-12679.89109193,0.00038,2]
[321035150,1711806637904,-152.1,0.00038587,2]
[321035151,1711806637914,-1000.0,0.00038868,2]
[321035152,1711806637924,-162.97,0.00038891,15]
[321035153,1711806637934,-829.47,0.00038968,2]
[321035154,1711806637943,-233.04,0.0003906,2]
[321035155,1711806637952,-156.52023772,0.00039155,2]
[321035156,1711806637962,-512.49,0.00039196,2]
[321035157,1711806637971,-194.58,0.00039238,2]
[321035158,1711806637981,-315.91,0.00039255,2]
[321035159,1711806637990,-159.5,0.0003949,2]
[321035160,1711806637999,-159.5,0.00039677,2]
[321035161,1711806638009,-1000.0,0.000397,14]
[321035162,1711806638019,-2000.0,0.000398,14]
[321035163,1711806638028,-159.5,0.00039864,2]
[321035164,1711806638037,-2147.62,0.0003987,10]
[321035165,1711806638046,-302.32145592,0.0003987,2]
[321035166,1711806638055,-190.7,0.0003987,2]
[321035167,1711806638064,-190.7,0.0003987,2]
[321035168,1711806638073,-190.7,0.0003987,2]
[321035169,1711806638082,-1210.81,0.0003987,2]
[321035170,1711806638091,-1210.81,0.0003987,2]
[321035171,1711806638100,-500.0,0.00039879,31]
[321035172,1711806638108,-500.0,0.00039879,31]
[321035173,1711806638118,-500.0,0.00039879,31]
[321035174,1711806638127,-500.0,0.00039879,31]
[321035175,1711806638136,-500.0,0.00039879,31]
[321035176,1711806638145,-500.0,0.00039879,31]
[321035177,1711806638154,-500.0,0.00039879,31]
[321035178,1711806638163,-500.0,0.00039879,31]
[321035179,1711806638173,-500.0,0.00039879,31]
[321035180,1711806638182,-456.02448294,0.00039879,31]
[321035181,1711806638195,-500.0,0.00039879,31]
[321035182,1711806638204,-206.0,0.0003988,2]
[321035183,1711806638214,-624359.05106168,0.0003988,2]
[321035184,1711806638223,-6208.38395467,0.00039895,2]
[321035185,1711806638233,-2398.27694359,0.00039898,2]
[321035186,1711806638242,-32154.46141935,0.00039899,2]
[321035187,1711806638252,-1480.6237,0.000399,2]
[321035188,1711806638262,-1000.0,0.000399,2]
[321035189,1711806638272,-664.601,0.000399,2]
[321035190,1711806638282,-954.0,0.000399,3]
[321035191,1711806638291,-3000.0,0.000399,14]
[321035192,1711806638300,-414.85707433,0.000399,2]
[321035193,1711806638309,-378.83164795,0.00039951,2]
[321035194,1711806638319,-169.57228838,0.00039951,2]
[321035195,1711806638328,-4750.46852185,0.00039951,13]
[321035196,1711806638338,-647.29161558,0.00039951,2]
[321035197,1711806638347,-1210.81,0.00039968,2]
[321035198,1711806638356,-9236.32342272,0.00039978,2]
[321035199,1711806638367,-153.46916055,0.00039982,6]
[321035200,1711806638376,-316.22,0.00039987,3]
[321035201,1711806638386,-190.7,0.00039989,2]
[321035202,1711806638395,-272.14,0.0003999,3]
[321035203,1711806638405,-302.32145592,0.0003999,2]
[321035204,1711806638415,-190.7,0.0003999,2]
[321035205,1711806638424,-190.7,0.0003999,2]
[321035206,1711806638434,-190.7,0.0003999,2]
[321035207,1711806638443,-190.7,0.0003999,2]
[321035208,1711806638453,-190.7,0.0003999,2]
[321035209,1711806638462,-190.7,0.0003999,2]
[321035210,1711806638471,-1210.81,0.0003999,2]
[321035211,1711806638481,-1210.81,0.0003999,2]
[321035212,1711806638491,-401.78894169,0.00039995,4]
[321035213,1711806638500,-49667.07163736,0.00039997,2]
[321035214,1711806638509,-6627.37424337,0.00039998,2]
[321035215,1711806638519,-1635.48,0.00039999,2]
[321035216,1711806638529,-1635.48,0.00039999,2]
[321035217,1711806638539,-1635.48,0.00039999,2]
[321035218,1711806638549,-1635.48,0.00039999,2]
[321035219,1711806638558,-1635.48,0.00039999,2]
[321035220,1711806638568,-1635.48,0.00039999,2]
[321035221,1711806638578,-1635.48,0.00039999,2]
[321035222,1711806638588,-1635.48,0.00039999,2]
[321035223,1711806638597,-1635.48,0.00039999,2]
[321035224,1711806638607,-1635.48,0.00039999,2]
[321035225,1711806638616,-1635.48,0.00039999,2]
[321035226,1711806638626,-1635.48,0.00039999,2]
[321035227,1711806638637,-1635.48,0.00039999,2]
[321035228,1711806638646,-1635.48,0.00039999,2]
[321035229,1711806638656,-1635.48,0.00039999,2]
[321035230,1711806638666,-1635.48,0.00039999,2]
[321035231,1711806638676,-1635.48,0.00039999,2]
[321035232,1711806638685,-1635.48,0.00039999,2]
[321035233,1711806638695,-1635.48,0.00039999,2]
[321035234,1711806638704,-1635.48,0.00039999,2]
[321035235,1711806638714,-1635.48,0.00039999,2]
[321035236,1711806638723,-1635.48,0.00039999,2]
[321035237,1711806638733,-1635.48,0.00039999,2]
[321035238,1711806638743,-1635.59533217,0.00039999,2]
[321035239,1711806638753,-1459253.13750103,0.0004,2]
[321035240,1711806638762,-159.5,0.00040051,2]
[321035241,1711806638773,-378.83164792,0.00040188,2]
[321035242,1711806638782,-159.5,0.00040238,2]
[321035243,1711806638792,-2398.27694352,0.00040291,2]
[321035244,1711806638801,-32154.46141927,0.00040295,2]
[321035245,1711806638811,-537.71,0.00040378,2]
[321035246,1711806638820,-800.0,0.00040418,10]
[321035247,1711806638830,-159.5,0.00040425,2]
[321035248,1711806638840,-378.83164792,0.00040426,2]
[321035249,1711806638849,-302.0,0.00040454,15]
[321035250,1711806638860,-191.19,0.00040464,15]
[321035251,1711806638869,-302.0,0.00040464,15]
[321035252,1711806638881,-150.5,0.00040474,15]
[321035253,1711806638890,-302.0,0.00040474,15]
[321035254,1711806638899,-392671.67839647,0.00040484,2]
[321035255,1711806638909,-12183.18902224,0.00040512,2]
[321035256,1711806638919,-4750.46852179,0.00040519,14]
[321035257,1711806638930,-302.32145592,0.0004058,2]
[321035258,1711806638940,-443.511,0.0004059,2]
[321035259,1711806638949,-812.4984,0.0004059,2]
[321035260,1711806638958,-245000.0,0.0004059,2]
[321035261,1711806638968,-159.5,0.00040612,2]
[321035262,1711806638977,-153.46916039,0.00040621,9]
[321035263,1711806638986,-378.83164792,0.00040663,2]
[321035264,1711806638995,-2398.27694352,0.00040683,2]
[321035265,1711806639004,-277.10498104,0.00040689,4]
[321035266,1711806639014,-42318.63719722,0.0004069,2]
[321035267,1711806639023,-32154.46141927,0.00040691,2]
[321035268,1711806639032,-158.0,0.0004077,15]
[321035269,1711806639042,-158.0,0.0004078,15]
[321035270,1711806639051,-158.0,0.0004079,15]
[321035271,1711806639060,-159.5,0.00040799,2]
[321035272,1711806639070,-1935.7113,0.000408,2]
[321035273,1711806639079,-68591.8749,0.000408,2]
[321035274,1711806639088,-4100.0,0.000408,14]
[321035275,1711806639097,-150.0,0.00040825,2]
[321035276,1711806639107,-3398.9435,0.00040884,2]
[321035277,1711806639116,-500.0,0.00040895,2]
[321035278,1711806639125,-378.83164792,0.000409,2]
[321035279,1711806639134,-5100.0,0.000409,14]
[321035280,1711806639142,-872.31010508,0.000409,33]
[321035281,1711806639151,-190.30482033,0.000409,2]
[321035282,1711806639160,-190.30482033,0.000409,2]
[321035283,1711806639169,-190.30482033,0.000409,2]
[321035284,1711806639178,-190.30482033,0.000409,2]
[321035285,1711806639186,-190.30482033,0.000409,2]
[321035286,1711806639197,-190.30482033,0.000409,2]
[321035287,1711806639207,-190.30482033,0.000409,2]
[321035288,1711806639216,-190.30482033,0.000409,2]
[321035289,1711806639226,-190.30482033,0.000409,2]
[321035290,1711806639236,-190.30482033,0.000409,2]
[321035291,1711806639246,-190.30482033,0.000409,2]
[321035292,1711806639255,-190.30482033,0.000409,2]
[321035293,1711806639264,-190.30482033,0.000409,2]
[321035294,1711806639275,-190.30482033,0.000409,2]
[321035295,1711806639285,-190.30482033,0.000409,2]
[321035296,1711806639294,-190.30482033,0.000409,2]
[321035297,1711806639303,-190.30482033,0.000409,2]
[321035298,1711806639313,-190.30482033,0.000409,2]
[321035299,1711806639322,-190.30482033,0.000409,2]
[321035300,1711806639332,-190.30482033,0.000409,2]
[321035301,1711806639341,-190.30482033,0.000409,2]
[321035302,1711806639351,-190.30482033,0.000409,2]
[321035303,1711806639360,-190.30482033,0.000409,2]
[321035304,1711806639371,-190.30482033,0.000409,2]
[321035306,1711806639380,-190.30482033,0.000409,2]
[321035308,1711806639389,-190.30482033,0.000409,2]
[321035310,1711806639399,-190.30482033,0.000409,2]
[321035312,1711806639408,-190.30482033,0.000409,2]
[321035314,1711806639417,-190.30482033,0.000409,2]
[321035316,1711806639427,-190.30482033,0.000409,2]
[321035318,1711806639436,-190.30482033,0.000409,2]
[321035320,1711806639445,-190.30482033,0.000409,2]
[321035322,1711806639454,-190.30482033,0.000409,2]
[321035324,1711806639463,-190.30482033,0.000409,2]
[321035326,1711806639473,-190.30482033,0.000409,2]
[321035328,1711806639483,-190.30482033,0.000409,2]
[321035330,1711806639493,-190.30482033,0.000409,2]
[321035332,1711806639502,-190.30482033,0.000409,2]
[321035334,1711806639512,-190.30482033,0.000409,2]
[321035336,1711806639521,-190.30482033,0.000409,2]
[321035338,1711806639531,-190.30482033,0.000409,2]
[321035340,1711806639541,-190.30482033,0.000409,2]
[321035342,1711806639551,-190.30482033,0.000409,2]
[321035345,1711806639560,-190.30482033,0.000409,2]
[321035347,1711806639570,-190.30482033,0.000409,2]
[321035349,1711806639580,-190.30482033,0.000409,2]
[321035351,1711806639590,-190.30482033,0.000409,2]
[321035353,1711806639599,-190.30482033,0.000409,2]
[321035355,1711806639608,-190.30482033,0.000409,2]
[321035357,1711806639618,-190.30482033,0.000409,2]
[321035359,1711806639627,-190.30482033,0.000409,2]
[321035361,1711806639638,-190.30482033,0.000409,2]
[321035362,1711806639647,-190.30482033,0.000409,2]
[321035364,1711806639657,-190.30482033,0.000409,2]
[321035366,1711806639667,-190.30482033,0.000409,2]
[321035368,1711806639676,-190.30482033,0.000409,2]
[321035370,1711806639685,-190.30482033,0.000409,2]
[321035371,1711806639694,-190.30482033,0.000409,2]
[321035372,1711806639704,-190.30482033,0.000409,2]
[321035373,1711806639713,-190.30482033,0.000409,2]
[321035374,1711806639723,-190.30482033,0.000409,2]
[321035375,1711806639732,-190.30482033,0.000409,2]
[321035376,1711806639741,-190.30482033,0.000409,2]
[321035377,1711806639751,-190.30482033,0.000409,2]
[321035378,1711806639760,-190.30482033,0.000409,2]
[321035379,1711806639769,-190.30482033,0.000409,2]
[321035380,1711806639779,-190.30482033,0.000409,2]
[321035381,1711806639788,-190.30482033,0.000409,2]
[321035382,1711806639798,-190.30482033,0.000409,2]
[321035383,1711806639807,-190.30482033,0.000409,2]
[321035384,1711806639816,-190.30482033,0.000409,2]
[321035385,1711806639958,-190.30482033,0.000409,2]
[321035386,1711806639990,-190.30482033,0.000409,2]
[321035387,1711806639999,-190.30482033,0.000409,2]
[321035388,1711806640008,-190.30482033,0.000409,2]
[321035389,1711806640017,-190.30482033,0.000409,2]
[321035390,1711806640027,-190.30482033,0.000409,2]
[321035391,1711806640037,-190.30482033,0.000409,2]
[321035392,1711806640047,-190.30482033,0.000409,2]
[321035393,1711806640058,-190.30482033,0.000409,2]
[321035394,1711806640068,-190.30482033,0.000409,2]
[321035395,1711806640077,-190.30482033,0.000409,2]
[321035396,1711806640087,-190.30482033,0.000409,2]
[321035397,1711806640096,-190.30482033,0.000409,2]
[321035398,1711806640104,-190.30482033,0.000409,2]
[321035399,1711806640113,-190.30482033,0.000409,2]
[321035400,1711806640124,-190.30482033,0.000409,2]
[321035401,1711806640136,-190.30482033,0.000409,2]
[321035402,1711806640145,-190.30482033,0.000409,2]
[321035403,1711806640157,-190.30482033,0.000409,2]
[321035404,1711806640166,-190.30482033,0.000409,2]
[321035405,1711806640176,-190.30482033,0.000409,2]
[321035406,1711806640186,-190.30482033,0.000409,2]
[321035407,1711806640199,-190.30482033,0.000409,2]
[321035408,1711806640208,-190.30482033,0.000409,2]
[321035409,1711806640217,-190.30482033,0.000409,2]
[321035410,1711806640227,-190.30482033,0.000409,2]
[321035411,1711806640242,-190.30482033,0.000409,2]
[321035412,1711806640253,-190.30482033,0.000409,2]
[321035413,1711806640263,-190.30482033,0.000409,2]
[321035414,1711806640272,-167.96419123,0.000409,120]
[321035415,1711806640282,-150.5,0.00040951,15]
[321035416,1711806640290,-159.5,0.00040986,2]
[321035417,1711806640305,-1660.73700094,0.00040994,30]
[321035418,1711806640314,-9946.1378,0.00040995,2]
[321035419,1711806640324,-14365.9559,0.00040995,2]
[321035420,1711806640334,-29287.3707,0.00040995,2]
[321035421,1711806640343,-276.9581,0.00040995,2]
[321035422,1711806640352,-6447.4275,0.00040995,2]
[321035423,1711806640362,-100000.0,0.00040995,2]
[321035424,1711806640371,-1000.0,0.00041,2]
[321035425,1711806640381,-1025582.15,0.00041,3]
[321035426,1711806640390,-189930.41326823,0.00041,7]
[321035427,1711806640439,-60069.58673177,0.00041,7]
[321035428,1711806640451,-395.73754943,0.00041072,4]
[321035429,1711806640461,-2398.27694352,0.00041076,2]
[321035430,1711806640471,-32154.46141927,0.00041086,2]
[321035431,1711806640480,-4750.46852179,0.00041087,15]
[321035432,1711806640490,-103475.2857958,0.00041089,2]
[321035433,1711806640499,-13972.5446699,0.00041089,2]
[321035434,1711806640508,-15394.9501197,0.00041089,2]
[321035435,1711806640519,-349031.1329658,0.00041089,2]
[321035436,1711806640529,-407.37982152,0.00041093,4]
[321035437,1711806640539,-236.66432559,0.00041093,2]
[321035438,1711806640548,-309.55652023,0.00041093,4]
[321035439,1711806640558,-358.63461831,0.00041093,4]
[321035440,1711806640567,-201.70306154,0.00041093,4]
[321035441,1711806640577,-2879.74439731,0.00041093,2]
[321035442,1711806640588,-155.0,0.00041093,4]
[321035443,1711806640597,-195.28360126,0.00041093,4]
[321035444,1711806640607,-192.21755063,0.00041093,4]
[321035445,1711806640617,-4697.47901234,0.00041093,4]
[321035446,1711806640628,-345.21232142,0.00041093,4]
[321035447,1711806640638,-205.27273477,0.00041093,4]
[321035448,1711806640647,-1043.94196735,0.00041093,4]
[321035449,1711806640657,-311.98057188,0.00041093,4]
[321035450,1711806640666,-155.34283485,0.00041093,4]
[321035451,1711806640676,-2162.89736187,0.00041093,4]
[321035452,1711806640686,-489.17760572,0.00041093,7]
[321035453,1711806640695,-157.27631021,0.00041093,4]
[321035454,1711806640705,-323.17336322,0.00041093,4]
[321035455,1711806640715,-1238.94442072,0.00041093,4]
[321035456,1711806640726,-218.90140169,0.00041093,4]
[321035457,1711806640735,-155.0,0.00041093,4]
[321035458,1711806640745,-203.26531134,0.00041093,4]
[321035459,1711806640755,-303.76984911,0.00041093,4]
[321035460,1711806640764,-377.07530359,0.00041093,4]
[321035461,1711806640774,-437.73313324,0.00041093,4]
[321035462,1711806640783,-808.32318404,0.00041093,4]
[321035463,1711806640793,-200.0,0.00041094,2]
[321035464,1711806640802,-200.0,0.00041094,2]
[321035465,1711806640811,-200.0,0.00041094,2]
[321035466,1711806640821,-563.50205483,0.00041094,2]
[321035467,1711806640831,-824.12462729,0.00041094,4]
[321035468,1711806640841,-500.0,0.00041095,4]
[321035469,1711806640850,-508.67873296,0.00041095,4]
[321035470,1711806640861,-503.52758366,0.00041095,4]
[321035471,1711806640871,-487.57326897,0.00041095,4]
[321035472,1711806640880,-213.10273762,0.00041095,30]
[321035473,1711806640890,-500.0,0.00041095,4]
[321035474,1711806640899,-500.0,0.00041095,4]
[321035475,1711806640910,-501.26481344,0.00041095,4]
[321035476,1711806640920,-500.0,0.00041095,4]
[321035477,1711806640930,-500.0,0.00041095,4]
[321035478,1711806640939,-500.0,0.00041095,4]
[321035479,1711806640949,-500.0,0.00041095,4]
[321035480,1711806640958,-500.0,0.00041095,4]
[321035481,1711806640968,-500.0,0.00041095,4]
[321035482,1711806640978,-524.9373483,0.00041095,4]
[321035483,1711806640987,-500.0,0.00041095,4]
[321035484,1711806640997,-500.0,0.00041095,4]
[321035485,1711806641007,-500.0,0.00041095,4]
[321035486,1711806641017,-500.0,0.00041095,4]
[321035487,1711806641026,-500.0,0.00041095,4]
[321035488,1711806641035,-500.0,0.00041095,4]
[321035489,1711806641045,-500.0,0.00041095,4]
[321035490,1711806641054,-500.0,0.00041095,4]
[321035491,1711806641074,-500.0,0.00041095,4]
[321035492,1711806641084,-500.0,0.00041095,4]
[321035493,1711806641094,-500.0,0.00041095,4]
[321035494,1711806641104,-528.60711419,0.00041095,4]
[321035495,1711806641113,-500.0,0.00041095,4]
[321035496,1711806641124,-500.0,0.00041095,4]
[321035497,1711806641134,-500.0,0.00041095,4]
[321035498,1711806641144,-160.17807768,0.00041095,4]
[321035499,1711806641156,-500.0,0.00041095,4]
[321035500,1711806641166,-500.0,0.00041095,4]
[321035501,1711806641176,-500.0,0.00041095,4]
[321035502,1711806641190,-500.0,0.00041095,4]
[321035503,1711806641201,-500.0,0.00041095,4]
[321035504,1711806641211,-500.0,0.00041095,4]
[321035505,1711806641222,-500.0,0.00041095,4]
[321035506,1711806641232,-500.0,0.00041095,4]
[321035507,1711806641243,-634.4877499,0.00041095,4]
[321035508,1711806641253,-500.0,0.00041095,4]
[321035509,1711806641264,-500.0,0.00041095,4]
[321035510,1711806641275,-500.0,0.00041095,4]
[321035511,1711806641286,-500.0,0.00041095,4]
[321035512,1711806641296,-500.0,0.00041095,4]
[321035513,1711806641307,-500.0,0.00041095,4]
[321035514,1711806641316,-564.58746182,0.00041095,4]
[321035515,1711806641326,-500.0,0.00041095,4]
[321035516,1711806641337,-537.78795104,0.00041095,4]
[321035517,1711806641347,-500.0,0.00041095,4]
[321035518,1711806641357,-500.0,0.00041095,4]
[321035519,1711806641367,-500.0,0.00041095,4]
[321035520,1711806641377,-500.0,0.00041095,4]
[321035521,1711806641387,-500.0,0.00041095,4]
[321035522,1711806641396,-500.0,0.00041095,4]
[321035523,1711806641407,-500.0,0.00041095,4]
[321035524,1711806641417,-500.0,0.00041095,4]
[321035525,1711806641427,-500.0,0.00041095,4]
[321035526,1711806641437,-239.26279773,0.00041095,4]
[321035527,1711806641446,-500.0,0.00041095,4]
[321035528,1711806641456,-545.637852,0.00041095,4]
[321035529,1711806641465,-506.8784948,0.00041095,4]
[321035530,1711806641475,-500.0,0.00041095,4]
[321035531,1711806641485,-500.0,0.00041095,4]
[321035532,1711806641495,-500.0,0.00041095,4]
[321035533,1711806641506,-500.0,0.00041095,4]
[321035534,1711806641515,-503.49717512,0.00041095,4]
[321035535,1711806641525,-500.0,0.00041095,4]
[321035536,1711806641536,-500.0,0.00041095,4]
[321035537,1711806641546,-538.0367578,0.00041095,4]
[321035538,1711806641556,-500.0,0.00041095,4]
[321035539,1711806641566,-500.0,0.00041095,4]
[321035540,1711806641576,-500.0,0.00041095,4]
[321035541,1711806641586,-500.0,0.00041095,4]
[321035542,1711806641596,-500.0,0.00041095,4]
[321035543,1711806641606,-500.0,0.00041095,4]
[321035544,1711806641616,-537.08788599,0.00041095,4]
[321035545,1711806641626,-500.0,0.00041095,4]
[321035546,1711806641636,-500.0,0.00041095,4]
[321035547,1711806641646,-500.0,0.00041095,4]
[321035548,1711806641656,-500.0,0.00041095,4]
[321035549,1711806641666,-500.0,0.00041095,4]
[321035550,1711806641676,-500.0,0.00041095,4]
[321035551,1711806641686,-332.64129416,0.00041095,4]
[321035552,1711806641697,-500.0,0.00041095,4]
[321035553,1711806641707,-500.0,0.00041095,4]
[321035554,1711806641717,-500.0,0.00041095,4]
[321035555,1711806641726,-586.49668158,0.00041095,4]
[321035556,1711806641736,-500.0,0.00041095,4]
[321035557,1711806641746,-500.0,0.00041095,4]
[321035558,1711806641757,-500.0,0.00041095,4]
[321035559,1711806641767,-500.0,0.00041095,4]
[321035560,1711806641776,-500.0,0.00041095,4]
[321035561,1711806641789,-500.0,0.00041095,2]
[321035562,1711806641800,-281.2797672,0.00041095,4]
[321035563,1711806641814,-500.0,0.00041095,4]
[321035564,1711806641824,-541.56,0.00041095,4]
[321035565,1711806641836,-500.0,0.00041095,4]
[321035566,1711806641845,-500.0,0.00041095,4]
[321035567,1711806641856,-636.38,0.00041095,4]
[321035568,1711806641866,-500.0,0.00041095,4]
[321035569,1711806641875,-500.0,0.00041095,4]
[321035570,1711806641886,-500.0,0.00041095,4]
[321035571,1711806641897,-500.0,0.00041095,4]
[321035572,1711806641907,-529.52001583,0.00041095,4]
[321035573,1711806641917,-1496.78,0.00041095,4]
[321035574,1711806641927,-500.0,0.00041095,4]
[321035575,1711806641938,-500.0,0.00041095,4]
[321035576,1711806641948,-500.0,0.00041095,4]
[321035577,1711806641958,-500.0,0.00041095,4]
[321035578,1711806641968,-592.49,0.00041095,4]
[321035579,1711806641978,-500.0,0.00041095,4]
[321035580,1711806641988,-500.0,0.00041095,2]
[321035581,1711806641998,-500.0,0.00041095,4]
[321035582,1711806642008,-500.0,0.00041095,4]
[321035583,1711806642018,-534.23,0.00041095,4]
[321035584,1711806642028,-500.0,0.00041095,4]
[321035585,1711806642038,-500.0,0.00041095,4]
[321035586,1711806642047,-500.0,0.00041095,4]
[321035587,1711806642057,-500.0,0.00041095,4]
[321035588,1711806642067,-500.0,0.00041095,4]
[321035589,1711806642077,-500.0,0.00041095,4]
[321035590,1711806642087,-500.0,0.00041095,4]
[321035591,1711806642097,-500.0,0.00041095,4]
[321035592,1711806642107,-500.0,0.00041095,4]
[321035593,1711806642117,-500.0,0.00041095,4]
[321035594,1711806642127,-500.0,0.00041095,4]
[321035595,1711806642137,-500.0,0.00041095,4]
[321035596,1711806642148,-500.0,0.00041095,4]